bitfinex-derivatives/quotes_SOLF0:USTF0_20241224
["timestamp","ask_amount","ask_price","bid_price","bid_amount"]
[1735031390184,2.5975,192.77,192.71,2.5982]
[1735031390382,1.6024,192.79,192.69,8.29404189]
[1735031390579,8.29404189,192.77,192.69,11.37404189]
[1735031390779,2.5971,192.8,192.71,8.29404189]
[1735031390984,8.29404189,192.78,192.71,8.29404189]
[1735031391188,8.29404189,192.76,192.69,3.08]
[1735031391389,8.29404189,192.74,192.71,2.5982]
[1735031392587,8.29404189,192.74,192.69,2.5985]
[1735031393486,8.29404189,192.74,192.67,8.29404189]
[1735031393684,8.29404189,192.74,192.7,2.5983]
[1735031395195,8.29404189,192.76,192.7,2.5983]
[1735031397696,8.29404189,192.76,192.71,2.5982]
[1735031398794,10.89164189,192.76,192.71,2.5982]
[1735031400690,8.29404189,192.72,192.65,1.4804]
[1735031400892,8.29404189,192.72,192.67,2.5987]
[1735031401397,8.29404189,192.7,192.67,2.5987]
[1735031401586,8.29404189,192.7,192.64,8.29404189]
[1735031401792,8.29404189,192.7,192.66,2.5989]
[1735031402399,10.89224189,192.72,192.67,2.5988]
[1735031403497,2.5978,192.75,192.68,8.29404189]
[1735031404399,8.29404189,192.74,192.7,2.5984]
[1735031404795,8.29404189,192.74,192.66,8.29404189]
[1735031405704,10.89204189,192.74,192.68,2.5987]
[1735031406093,8.29404189,192.72,192.66,8.29404189]
[1735031407308,10.89224189,192.72,192.67,2.5988]
[1735031408804,2.5983,192.71,192.67,2.5988]
[1735031409607,2.5986,192.69,192.61,3.29446]
[1735031409795,8.29404189,192.7,192.61,8.48850189]
[1735031410000,8.29404189,192.68,192.61,8.29404189]
[1735031410495,8.29404189,192.7,192.63,8.29404189]
[1735031410703,10.89244189,192.7,192.65,2.5991]
[1735031410906,10.89244189,192.7,192.63,8.29404189]
[1735031411304,8.29404189,192.7,192.63,8.29404189]
[1735031411505,2.5985,192.69,192.61,8.29404189]
[1735031412105,8.29404189,192.68,192.59,3.1443]
[1735031412298,3.1,192.72,192.55,111.34622497]
[1735031412299,8.29404189,192.64,192.56,8.29404189]
[1735031412906,8.29404189,192.64,192.59,0.21392]
[1735031413410,2.5994,192.63,192.59,0.21392]
[1735031413710,8.29404189,192.64,192.59,0.21392]
[1735031415411,10.89324189,192.64,192.59,0.21392]
[1735031415616,8.29404189,192.62,192.59,0.21392]
[1735031416005,8.29404189,192.6,192.59,0.21392]
[1735031416712,10.89384189,192.6,192.59,0.21392]
[1735031417113,8.29404189,192.6,192.59,0.21392]
[1735031417912,8.29404189,192.6,192.52,8.29404189]
[1735031418108,8.29404189,192.58,192.5,8.29404189]
[1735031418307,10.89404189,192.58,192.53,2.6006]
[1735031419804,10.89404189,192.58,192.54,2.6006]
[1735031420712,10.89404189,192.58,192.5,8.29404189]
[1735031420911,10.89404189,192.58,192.53,2.6007]
[1735031421612,8.29404189,192.56,192.51,2.6009]
[1735031421809,8.29404189,192.56,192.48,8.29404189]
[1735031423414,8.29404189,192.56,192.51,2.6008]
[1735031424020,8.29404189,192.56,192.46,3.1301]
[1735031424314,2.6005,192.55,192.49,2.6011]
[1735031424510,8.29404189,192.54,192.49,2.6011]
[1735031424706,10.89484189,192.52,192.47,2.6014]
[1735031424907,8.29404189,192.54,192.47,8.29404189]
[1735031425313,8.29404189,192.54,192.5,2.6011]
[1735031429716,8.29404189,192.52,192.5,2.6011]
[1735031433821,8.29404189,192.52,192.46,8.29404189]
[1735031434020,8.29404189,192.52,192.48,2.6013]
[1735031434919,4.6642,192.55,192.49,2.6011]
[1735031434920,8.29404189,192.54,192.49,2.6011]
[1735031437913,8.29404189,192.54,192.5,2.6011]
[1735031444112,10.89464189,192.54,192.5,2.6011]
[1735031445623,10.89494189,192.52,192.48,2.6013]
[1735031446125,8.29404189,192.5,192.39,71.3862352]
[1735031446319,8.29404189,192.44,192.42,2.6022]
[1735031446622,8.29404189,192.44,192.38,71.3862352]
[1735031446822,8.29404189,192.44,192.4,2.6023]
[1735031447319,10.89594189,192.44,192.4,2.6023]
[1735031447521,8.29404189,192.42,192.38,71.3862352]
[1735031447722,8.29404189,192.42,192.37,3.0757]
[1735031448019,8.29404189,192.42,192.32,71.3862352]
[1735031448223,8.29404189,192.42,192.34,8.29404189]
[1735031448423,8.29404189,192.42,192.36,8.29404189]
[1735031449525,8.29404189,192.42,192.37,2.6028]
[1735031451229,8.29404189,192.44,192.36,8.29404189]
[1735031451428,8.29404189,192.44,192.38,8.29404189]
[1735031452123,8.29404189,192.44,192.32,3.08]
[1735031452323,8.29404189,192.44,192.39,2.6025]
[1735031453623,8.29404189,192.44,192.41,2.6023]
[1735031457926,8.29404189,192.44,192.34,3.2143]
[1735031458133,2.6021,192.43,192.38,2.6026]
[1735031459731,8.29404189,192.44,192.37,8.29404189]
[1735031459928,8.29404189,192.44,192.4,2.6024]
[1735031460233,8.29404189,192.42,192.35,8.29404189]
[1735031460433,10.89624189,192.42,192.38,2.6027]
[1735031460931,2.6022,192.42,192.38,2.6027]
[1735031461324,2.6022,192.42,192.37,2.6028]
[1735031462133,8.29404189,192.43,192.34,3.2143]
[1735031462329,10.89634189,192.41,192.35,10.89704189]
[1735031462629,8.29404189,192.41,192.35,2.603]
[1735031463336,2.6026,192.39,192.35,2.603]
[1735031465235,2.6026,192.39,192.31,1.5303]
[1735031465536,10.89664189,192.39,192.33,2.6033]
[1735031466235,2.6028,192.38,192.33,2.6033]
[1735031469037,10.89694189,192.37,192.31,2.6036]
[1735031469236,8.29404189,192.37,192.31,2.6036]
[1735031469441,8.29404189,192.35,192.31,2.6036]
[1735031470832,2.603,192.36,192.31,2.6036]
[1735031471033,10.89704189,192.36,192.31,2.6036]
[1735031471532,3.06,192.41,192.29,8.29404189]
[1735031471737,8.29404189,192.4,192.33,8.29404189]
[1735031472234,10.89664189,192.4,192.35,2.6031]
[1735031472634,8.29404189,192.38,192.31,8.29404189]
[1735031473152,2.6028,192.38,192.34,2.6032]
[1735031473352,3.06,192.41,192.33,8.29404189]
[1735031473654,8.29404189,192.39,192.33,8.29404189]
[1735031473849,8.29404189,192.39,192.37,2.6028]
[1735031474747,8.29404189,192.39,192.36,2.603]
[1735031474951,8.29404189,192.37,192.31,8.29404189]
[1735031475351,2.6031,192.36,192.31,2.6035]
[1735031475749,8.29404189,192.35,192.31,2.6035]
[1735031476451,8.29404189,192.37,192.33,2.6034]
[1735031476651,8.29404189,192.37,192.3,8.29404189]
[1735031476851,8.29404189,192.39,192.3,8.29404189]
[1735031477457,10.89674189,192.39,192.34,2.6032]
[1735031477860,8.29404189,192.39,192.32,8.29404189]
[1735031478158,8.29404189,192.39,192.35,2.603]
[1735031479255,8.29404189,192.39,192.36,2.603]
[1735031480861,8.29404189,192.43,192.36,8.29404189]
[1735031481557,10.89624189,192.43,192.38,2.6026]
[1735031482260,10.89644189,192.41,192.36,2.6029]
[1735031482764,10.89644189,192.41,192.34,8.29404189]
[1735031483255,8.29404189,192.41,192.34,8.29404189]
[1735031483457,11.35404189,192.43,192.34,8.29404189]
[1735031483762,59.52699943,192.55,192.36,8.29404189]
[1735031484059,8.29404189,192.41,192.33,1.6105]
[1735031484263,8.29404189,192.41,192.34,8.29404189]
[1735031484458,10.89644189,192.41,192.36,2.6029]
[1735031484858,8.29404189,192.41,192.36,2.6029]
[1735031485063,2.6026,192.4,192.35,2.6031]
[1735031485264,8.29404189,192.39,192.35,2.6031]
[1735031488866,8.29404189,192.39,192.36,2.603]
[1735031489962,8.29404189,192.41,192.37,2.6029]
[1735031490867,7.201,192.43,192.38,2.6027]
[1735031491061,8.29404189,192.41,192.38,2.6027]
[1735031491468,8.29404189,192.41,192.4,2.6025]
[1735031491767,9.80364189,192.43,192.4,2.6025]
[1735031492563,8.29404189,192.41,192.31,93.02356647]
[1735031492761,8.29404189,192.41,192.34,8.29404189]
[1735031493361,9.80364189,192.43,192.34,8.29404189]
[1735031494361,8.29404189,192.43,192.34,8.29404189]
[1735031494568,8.29404189,192.43,192.4,2.6024]
[1735031495069,8.29404189,192.43,192.41,2.6023]
[1735031497361,8.29404189,192.43,192.36,8.29404189]
[1735031498058,8.29404189,192.43,192.41,2.6022]
[1735031498367,8.29404189,192.43,192.35,3.1]
[1735031498567,8.29404189,192.43,192.36,8.29404189]
[1735031499069,8.29404189,192.41,192.34,8.29404189]
[1735031499464,3.1,192.47,192.34,8.29404189]
[1735031499763,8.29404189,192.42,192.34,8.29404189]
[1735031500569,8.29404189,192.42,192.4,2.6024]
[1735031501669,2.6019,192.44,192.4,2.6024]
[1735031504367,3.1,192.47,192.34,3.1615]
[1735031504572,8.29404189,192.38,192.32,78.9303811]
[1735031504874,8.29404189,192.38,192.33,14.05886994]
[1735031505172,8.29404189,192.38,192.34,2.6032]
[1735031505469,8.29404189,192.38,192.33,14.05886994]
[1735031506266,8.29404189,192.38,192.3,8.29404189]
[1735031506469,10.89684189,192.38,192.33,2.6034]
[1735031507267,8.29404189,192.38,192.3,8.29404189]
[1735031507470,8.29404189,192.36,192.32,2.6035]
[1735031508675,10.89704189,192.36,192.32,2.6035]
[1735031510773,8.29404189,192.36,192.32,2.6035]
[1735031513873,2.6029,192.37,192.32,2.6035]
[1735031515180,8.29404189,192.36,192.28,3.0635]
[1735031515368,3.1,192.42,192.28,5.6675]
[1735031515369,8.29404189,192.34,192.28,5.6675]
[1735031515574,8.29404189,192.34,192.28,16.68375349]
[1735031515773,8.29404189,192.32,192.28,14.07975349]
[1735031516074,2.6039,192.29,192.28,14.07975349]
[1735031516379,1.6054,192.34,192.24,8.29404189]
[1735031516677,1.6054,192.34,192.26,8.29404189]
[1735031516878,8.29404189,192.35,192.28,8.29404189]
[1735031517377,8.29404189,192.35,192.28,10.89794189]
[1735031517378,2.6033,192.34,192.28,10.89794189]
[1735031517976,8.29404189,192.35,192.29,2.6039]
[1735031518368,8.29404189,192.35,192.28,8.29404189]
[1735031518575,8.29404189,192.35,192.3,2.6038]
[1735031519473,10.89744189,192.33,192.28,2.604]
[1735031520481,5.7854,192.36,192.29,2.6039]
[1735031520775,8.29404189,192.35,192.28,8.29404189]
[1735031521481,10.89714189,192.35,192.3,2.6038]
[1735031521779,8.29404189,192.33,192.3,2.6038]
[1735031522779,10.89744189,192.33,192.29,2.6039]
[1735031523672,8.29404189,192.33,192.27,2.6041]
[1735031523877,2.6036,192.32,192.27,2.6041]
[1735031524481,2.6036,192.32,192.26,8.29404189]
[1735031524774,8.29404189,192.33,192.28,2.6041]
[1735031524979,10.89744189,192.33,192.28,2.6041]
[1735031526776,2.6036,192.32,192.27,2.6042]
[1735031526982,8.29404189,192.31,192.25,8.29404189]
[1735031527281,8.29404189,192.29,192.24,2.6046]
[1735031527482,8.29404189,192.29,192.2,3.32282]
[1735031530484,2.6041,192.28,192.23,10.89884189]
[1735031530684,8.29404189,192.29,192.23,10.89884189]
[1735031530685,8.29404189,192.29,192.23,8.29404189]
[1735031531285,10.89804189,192.29,192.24,2.6045]
[1735031532681,8.29404189,192.27,192.2,0.18282]
[1735031532886,11.43404189,192.27,192.2,0.18282]
[1735031533187,8.29404189,192.29,192.21,8.29404189]
[1735031533583,8.29404189,192.29,192.23,8.29404189]
[1735031533982,8.29404189,192.29,192.2,0.18282]
[1735031533983,8.29404189,192.29,192.21,8.29404189]
[1735031534280,8.29404189,192.25,192.2,0.18282]
[1735031534477,1.5204,192.29,192.22,8.29404189]
[1735031535283,1.5204,192.29,192.24,8.29404189]
[1735031535887,1.5204,192.29,192.2,0.18282]
[1735031536088,1.5204,192.29,192.23,8.29404189]
[1735031536388,12.41844189,192.29,192.23,2.6047]
[1735031536579,8.29404189,192.27,192.2,0.18282]
[1735031536986,2.6045,192.25,192.2,0.18282]
[1735031537189,8.29404189,192.23,192.2,0.18282]
[1735031537481,8.29404189,192.23,192.15,8.29404189]
[1735031537688,2.605,192.22,192.17,2.6055]
[1735031537990,8.29404189,192.21,192.15,8.29404189]
[1735031538784,2.9864,192.26,192.15,8.29404189]
[1735031538986,8.29404189,192.22,192.15,8.29404189]
[1735031539685,10.89894189,192.22,192.13,2.606]
[1735031539884,8.29404189,192.22,192.1,3.14]
[1735031540188,11.43404189,192.22,192.14,8.29404189]
[1735031541093,2.6051,192.21,192.14,8.29404189]
[1735031542089,2.6051,192.21,192.16,10.89964189]
[1735031543991,8.29404189,192.17,192.1,0.2219]
[1735031544287,8.29404189,192.14,192.1,0.2219]
[1735031544591,8.29404189,192.15,192.1,0.2219]
[1735031544890,3.14,192.16,192.1,0.2219]
[1735031545091,11.43404189,192.16,192.1,2.8283]
[1735031545292,11.43404189,192.16,192.01,214.0164143]
[1735031545293,8.29404189,192.11,191.99,57.82258323]
[1735031545490,8.29404189,192.07,192.0,8.29404189]
[1735031545790,8.29404189,192.03,191.99,57.82258323]
[1735031545987,11.43404189,192.05,191.99,57.82258323]
[1735031546187,8.29404189,192.05,191.99,57.82258323]
[1735031546692,8.29404189,192.05,191.98,8.29404189]
[1735031546889,11.43404189,192.09,192.02,8.29404189]
[1735031547088,1.5981,192.15,192.02,8.29404189]
[1735031547294,8.29404189,192.1,192.02,8.29404189]
[1735031548191,8.29404189,192.08,192.02,8.29404189]
[1735031548394,8.29404189,192.08,192.04,2.6073]
[1735031548595,8.29404189,192.1,192.04,2.6073]
[1735031548897,8.29404189,192.1,192.02,8.29404189]
[1735031550292,8.29404189,192.04,191.93,57.82258323]
[1735031550490,3.0048,192.1,191.93,57.82258323]
[1735031550693,8.29404189,192.0,191.94,2.6087]
[1735031550996,11.43404189,192.0,191.94,2.6087]
[1735031551295,11.43404189,192.0,191.93,57.82258323]
[1735031551296,11.43404189,192.02,191.95,2.6085]
[1735031551487,3.0048,192.1,191.89,62.36708323]
[1735031551488,3.14,192.01,191.89,62.36708323]
[1735031551687,11.43404189,192.01,191.93,8.29404189]
[1735031551887,3.0048,192.1,191.96,2.6084]
[1735031551888,2.6077,192.02,191.96,2.6084]
[1735031552097,3.0048,192.1,191.97,8.29404189]
[1735031552296,3.14,192.09,191.84,57.82258323]
[1735031552495,13.04073326,191.99,191.9,2.6092]
[1735031552696,13.04073326,191.99,191.85,75.38381649]
[1735031552899,3.36,191.98,191.85,75.38381649]
[1735031553197,3.36,191.98,191.85,62.34308323]
[1735031553799,3.36,191.98,191.85,4.5205]
[1735031554001,4.8414,191.98,191.85,4.5205]
[1735031554395,4.8414,191.98,191.88,2.6095]
[1735031554991,13.04073326,191.96,191.76,57.82258323]
[1735031555299,4.9407,191.95,191.81,13.04073326]
[1735031555499,4.9407,191.95,191.82,3.1119]
[1735031555699,4.9407,191.95,191.87,2.6097]
[1735031555899,3.36,191.94,191.82,3.1119]
[1735031557200,3.36,191.94,191.89,2.6094]
[1735031557592,13.04073326,191.93,191.81,13.04073326]
[1735031557798,3.36,191.92,191.82,4.7086]
[1735031558792,16.40073326,191.93,191.82,4.7086]
[1735031559404,13.04073326,191.93,191.82,4.7086]
[1735031559596,3.36,191.94,191.82,4.7086]
[1735031560097,3.36,191.94,191.74,57.82258323]
[1735031560291,13.04073326,191.93,191.75,8.92454096]
[1735031560495,13.04073326,191.93,191.8,13.04073326]
[1735031560694,13.04073326,191.93,191.81,0.95904096]
[1735031561306,1.5807,191.95,191.83,13.04073326]
[1735031561597,16.40073326,191.96,191.84,4.5897]
[1735031561801,13.04073326,191.96,191.92,2.6089]
[1735031562403,1.5268,192.06,191.95,2.6086]
[1735031562598,13.04073326,192.03,191.9,13.04073326]
[1735031563596,13.04073326,192.03,191.96,2.6083]
[1735031565205,13.04073326,192.03,191.97,2.6083]
[1735031566304,13.04073326,192.03,191.9,13.04073326]
[1735031566502,13.04073326,192.03,191.98,2.6082]
[1735031567702,13.04073326,192.03,191.9,13.04073326]
[1735031569210,3.36,192.02,191.9,13.04073326]
[1735031569409,3.36,192.02,191.97,2.6082]
[1735031569809,13.04073326,192.03,191.9,13.04073326]
[1735031570010,13.04073326,192.03,192.0,2.6078]
[1735031571312,13.04073326,192.06,192.01,2.6076]
[1735031571507,13.04073326,192.06,191.95,3.36]
[1735031571810,3.36,192.08,191.96,13.04073326]
[1735031572013,13.04073326,192.06,191.95,3.36]
[1735031572508,13.04073326,192.06,191.94,4.5535]
[1735031573009,13.04073326,192.06,191.99,2.6079]
[1735031574412,13.04073326,192.03,191.99,2.6079]
[1735031574606,13.04073326,192.03,191.98,2.608]
[1735031575412,3.36,192.1,192.02,2.6076]
[1735031575612,13.04073326,192.08,192.02,2.6076]
[1735031577010,13.04073326,192.05,192.0,2.6078]
[1735031578003,13.04073326,192.05,191.94,4.5535]
[1735031578203,13.04073326,192.05,192.02,2.6075]
[1735031578612,13.04073326,192.05,191.94,4.5535]
[1735031579010,16.40073326,192.08,191.95,14.04690239]
[1735031579416,16.40073326,192.08,191.95,27.08763565]
[1735031580111,16.40073326,192.08,191.96,92.95387065]
[1735031580112,13.04073326,192.08,191.96,92.95387065]
[1735031580313,16.40073326,192.11,192.06,2.6071]
[1735031580608,16.40073326,192.11,191.98,16.40073326]
[1735031581409,16.40073326,192.11,191.99,92.95387065]
[1735031582310,16.40073326,192.11,192.0,14.04690239]
[1735031583312,16.40073326,192.11,191.99,57.82258323]
[1735031583508,13.04073326,192.11,192.07,2.6069]
[1735031584207,8.34231046,192.08,192.07,2.6069]
[1735031590617,8.34231046,192.09,192.07,2.6069]
[1735031593925,8.34231046,192.09,192.08,2.6068]
[1735031594419,8.34231046,192.09,192.02,8.34231046]
[1735031594617,8.34231046,192.09,192.07,2.6069]
[1735031595519,8.34231046,192.09,192.02,8.34231046]
[1735031595722,8.34231046,192.09,192.08,2.6068]
[1735031599318,8.34231046,192.09,192.07,2.6069]
[1735031599513,8.34231046,192.08,192.01,4.8168]
[1735031599922,8.34231046,192.08,192.05,2.6071]
[1735031601725,8.34231046,192.08,192.04,2.6072]
[1735031601930,3.34,192.1,192.01,13.15911046]
[1735031602226,8.34231046,192.06,191.96,71.87589442]
[1735031602424,8.34231046,192.06,191.98,8.34231046]
[1735031602625,8.34231046,192.06,192.02,2.6076]
[1735031602826,3.34,192.1,192.0,8.34231046]
[1735031603025,8.34231046,192.07,192.0,8.34231046]
[1735031603822,8.34231046,192.07,191.98,2.6081]
[1735031604032,8.34231046,192.07,192.0,8.34231046]
[1735031605228,8.34231046,192.07,192.02,2.6076]
[1735031605429,8.34231046,192.07,192.0,8.34231046]
[1735031606128,8.34231046,192.07,191.95,83.50451057]
[1735031606327,8.34231046,192.07,191.98,8.34231046]
[1735031607227,8.34231046,192.07,192.02,2.6075]
[1735031610632,8.34231046,192.07,192.04,2.6073]
[1735031611029,8.34231046,192.05,191.96,14.12469501]
[1735031611232,8.34231046,191.99,191.96,14.12469501]
[1735031611433,8.34231046,191.97,191.95,57.82258323]
[1735031612331,2.6084,191.96,191.95,57.82258323]
[1735031612530,2.6084,191.96,191.89,2.6093]
[1735031613934,8.34231046,191.95,191.88,4.6064]
[1735031614134,8.34231046,191.95,191.84,14.11046944]
[1735031614434,8.34231046,191.95,191.87,8.34231046]
[1735031615035,8.34231046,191.95,191.87,2.6096]
[1735031615237,2.6085,191.96,191.87,8.34231046]
[1735031615430,8.34231046,191.95,191.87,8.34231046]
[1735031616322,10.95091046,191.95,191.87,10.95181046]
[1735031616523,1.6101,191.98,191.87,2.6095]
[1735031616524,8.34231046,191.93,191.87,2.6095]
[1735031616736,8.34231046,191.93,191.85,8.34231046]
[1735031617029,8.34231046,191.91,191.85,10.95211046]
[1735031618436,10.95141046,191.91,191.85,10.95211046]
[1735031618733,8.34231046,191.91,191.82,2.6103]
[1735031618929,8.34231046,191.91,191.82,10.95261046]
[1735031619130,3.28,191.94,191.82,8.34231046]
[1735031619329,8.34231046,191.9,191.83,2.6102]
[1735031620529,10.95171046,191.9,191.83,2.6102]
[1735031620735,10.95171046,191.9,191.84,2.6101]
[1735031621237,15.66,192.05,191.89,8.34231046]
[1735031621238,8.34231046,192.0,191.89,8.34231046]
[1735031621438,8.34231046,192.0,191.93,8.34231046]
[1735031622935,8.34231046,192.0,191.95,2.6085]
[1735031623729,8.34231046,191.96,191.89,8.34231046]
[1735031624239,13.04963295,192.0,191.87,13.04963295]
[1735031625242,2.6083,191.98,191.86,7.8766]
[1735031626542,15.65753295,192.0,191.93,2.6088]
[1735031627945,15.65753295,192.0,191.94,2.6087]
[1735031629343,13.04963295,191.96,191.79,70.87221618]
[1735031629545,13.04963295,191.91,191.8,1.611]
[1735031630246,13.04963295,191.91,191.86,2.6097]
[1735031632349,5.889,191.92,191.82,2.6103]
[1735031632350,13.04963295,191.88,191.82,2.6103]
[1735031633249,15.65923295,191.88,191.83,2.6101]
[1735031633547,13.04963295,191.88,191.8,1.611]
[1735031634147,2.6097,191.87,191.82,2.6103]
[1735031634550,2.6097,191.87,191.8,1.611]
[1735031634746,2.6101,191.84,191.79,2.6107]
[1735031634947,2.6101,191.84,191.73,3.28]
[1735031635340,2.6101,191.84,191.72,17.52673295]
[1735031635546,2.6102,191.83,191.77,2.611]
[1735031635851,13.04963295,191.85,191.73,3.28]
[1735031636048,13.04963295,191.85,191.72,4.4771]
[1735031636249,13.04963295,191.82,191.72,4.4771]
[1735031636451,13.04963295,191.82,191.72,2.983]
[1735031636946,13.04963295,191.82,191.78,2.6109]
[1735031638151,2.6101,191.84,191.78,2.6109]
[1735031640343,13.04963295,191.85,191.73,13.04963295]
[1735031640646,2.6099,191.85,191.79,2.6107]
[1735031641556,5.8898,191.86,191.8,2.6105]
[1735031641752,5.8898,191.86,191.76,13.04963295]
[1735031641753,3.28,191.86,191.76,13.04963295]
[1735031642053,1.5714,191.87,191.76,13.04963295]
[1735031642054,4.1812,191.87,191.8,2.6105]
[1735031642453,4.1812,191.87,191.76,16.32963295]
[1735031642644,15.66,192.07,191.86,2.6098]
[1735031642849,13.04963295,191.94,191.86,2.6098]
[1735031643051,16.42963295,191.94,191.86,2.6098]
[1735031644156,2.6092,191.91,191.76,61.10258323]
[1735031644352,2.6092,191.91,191.81,13.04963295]
[1735031644553,2.6092,191.91,191.82,1.5465]
[1735031645149,2.6095,191.88,191.82,1.5465]
[1735031645458,13.04963295,191.91,191.83,2.6101]
[1735031646453,2.6094,191.89,191.84,2.61]
[1735031647060,2.6094,191.9,191.85,2.6099]
[1735031647763,15.65873295,191.91,191.86,2.6097]
[1735031648559,16.42963295,191.94,191.82,1.5465]
[1735031648864,1.4777,191.98,191.82,1.5465]
[1735031648865,3.38,191.97,191.84,13.04963295]
[1735031649158,13.04963295,191.95,191.84,13.04963295]
[1735031649474,2.6091,191.91,191.86,2.6097]
[1735031650171,13.04963295,191.92,191.82,4.9265]
[1735031651567,13.04963295,191.95,191.86,2.6098]
[1735031652065,2.6091,191.92,191.86,2.6098]
[1735031652672,2.6091,191.91,191.86,2.6098]
[1735031653575,2.6091,191.91,191.87,2.6096]
[1735031653771,13.04963295,191.95,191.84,13.04963295]
[1735031653973,16.42963295,191.95,191.84,13.04963295]
[1735031654170,3.38,191.95,191.9,2.6092]
[1735031654476,2.6086,191.95,191.85,1.5573]
[1735031656474,2.6086,191.95,191.9,2.6092]
[1735031657773,13.04963295,191.95,191.82,4.9265]
[1735031658775,2.6091,191.92,191.86,2.6097]
[1735031659276,2.6095,191.89,191.84,2.61]
[1735031663080,2.6098,191.86,191.81,2.6104]
[1735031663480,13.04963295,191.89,191.75,84.98268562]
[1735031664075,13.04963295,191.89,191.75,13.04963295]
[1735031664482,2.6102,191.84,191.79,2.6106]
[1735031667586,2.6094,191.9,191.81,13.04963295]
[1735031667780,3.38,191.93,191.81,13.04963295]
[1735031668087,2.6096,191.88,191.84,2.61]
[1735031668286,10.96984019,191.88,191.81,8.36024019]
[1735031668684,2.6096,191.88,191.81,8.36024019]
[1735031668884,2.6096,191.88,191.83,8.36024019]
[1735031669185,1.6272,191.97,191.85,8.36024019]
[1735031669382,10.96924019,191.92,191.87,2.6096]
[1735031670387,2.609,191.92,191.87,2.6096]
[1735031671889,2.609,191.92,191.88,2.6095]
[1735031672288,2.6088,191.94,191.85,13.05848164]
[1735031673087,2.6088,191.94,191.87,2.6096]
[1735031673291,2.6086,191.95,191.85,13.05848164]
[1735031674192,2.6089,191.93,191.88,2.6095]
[1735031674385,13.05848164,191.94,191.83,17.15866944]
[1735031675092,2.609,191.92,191.86,2.6097]
[1735031676291,2.609,191.92,191.83,3.0482]
[1735031676292,2.609,191.92,191.87,2.6096]
[1735031676988,26.11696328,191.9,191.81,14.11046944]
[1735031677294,13.05848164,191.84,191.81,14.11046944]
[1735031677895,16.49848164,191.84,191.78,14.11046944]
[1735031678696,16.49848164,191.84,191.73,0.19105]
[1735031678990,2.6103,191.82,191.76,2.611]
[1735031680492,2.6103,191.82,191.73,0.19105]
[1735031680698,2.6103,191.82,191.77,2.611]
[1735031680896,2.6106,191.8,191.73,0.19105]
[1735031681097,13.05848164,191.81,191.73,0.19105]
[1735031682192,13.05848164,191.81,191.73,2.80245]
[1735031683499,13.05848164,191.81,191.73,0.19105]
[1735031683900,3.44,191.81,191.73,0.19105]
[1735031684103,6.0505,191.81,191.71,13.05848164]
[1735031684596,6.0505,191.81,191.69,1.5257]
[1735031684796,6.0505,191.81,191.69,14.58418164]
[1735031685691,6.0505,191.81,191.69,1.5257]
[1735031685896,3.44,191.81,191.71,13.05848164]
[1735031686796,3.44,191.81,191.75,2.6112]
[1735031686991,13.05848164,191.84,191.71,13.05848164]
[1735031687200,16.49848164,191.84,191.71,13.05848164]
[1735031687801,2.6103,191.83,191.78,2.6109]
[1735031688605,13.05848164,191.81,191.69,57.82258323]
[1735031688804,13.05848164,191.81,191.69,59.40428323]
[1735031689205,2.611,191.78,191.72,2.6116]
[1735031689404,13.05848164,191.81,191.72,2.6116]
[1735031689805,13.05848164,191.81,191.69,14.64018164]
[1735031689806,2.6107,191.8,191.69,14.64018164]
[1735031690104,3.44,191.8,191.69,14.64018164]
[1735031690494,2.6108,191.79,191.73,2.6115]
[1735031690699,2.6108,191.79,191.69,14.64018164]
[1735031691003,6.0506,191.8,191.75,2.6113]
[1735031692005,2.6106,191.8,191.75,2.6113]
[1735031692805,16.49848164,191.81,191.69,14.64018164]
[1735031692994,4.6707,191.89,191.75,13.05848164]
[1735031693195,19.63428164,191.89,191.76,3.1721]
[1735031693594,2.6097,191.87,191.81,2.6104]
[1735031695302,2.6101,191.84,191.78,2.6109]
[1735031695503,13.05848164,191.86,191.77,1.5937]
[1735031696000,13.05848164,191.86,191.78,2.6108]
[1735031696907,2.6102,191.84,191.78,2.6108]
[1735031699008,15.66838164,191.86,191.8,2.6106]
[1735031699709,16.19428164,191.89,191.77,1.5937]
[1735031699909,6.0496,191.88,191.82,2.6103]
[1735031700407,6.0496,191.88,191.77,1.5937]
[1735031700408,2.6096,191.88,191.77,1.5937]
[1735031700708,1.5478,191.96,191.79,13.05848164]